fUST/lending_fUST_20250202
["ID","MTS","AMOUNT","RATE_DAILY","PERIOD"]
[351237948,1738467043944,-151.0,0.00017397,2]
[351237949,1738467043953,-151.0,0.00017397,2]
[351237950,1738467043962,-151.0,0.00017397,2]
[351237951,1738467043971,-1063.44695878,0.00017397,2]
[351237952,1738467043984,-258.27695422,0.00017397,2]
[351237953,1738467043993,-1321.723913,0.00017397,2]
[351237954,1738467044002,-242.024022,0.00017397,2]
[351237955,1738467044011,-151.0,0.00017397,2]
[351237956,1738467044020,-474.56764954,0.00017397,2]
[351237957,1738467044030,-151.0,0.00017397,2]
[351237958,1738467044039,-281.646243,0.00017397,2]
[351237959,1738467044048,-281.646243,0.00017397,2]
[351237960,1738467044057,-219.432438,0.00017397,2]
[351237961,1738467044066,-219.432438,0.00017397,2]
[351237962,1738467044076,-151.0,0.00017397,2]
[351237963,1738467044085,-151.0,0.00017397,2]
[351237964,1738467044094,-165.223791,0.00017397,2]
[351237965,1738467044103,-151.0,0.00017397,2]
[351237966,1738467044112,-165.223791,0.00017397,2]
[351237967,1738467044121,-500.0,0.00017397,2]
[351237968,1738467044130,-535.12,0.00017397,2]
[351237969,1738467044141,-1854.35,0.00017397,2]
[351237970,1738467044150,-3178.87,0.00017397,2]
[351237971,1738467044159,-618.02,0.00017397,2]
[351237972,1738467044169,-500.0,0.00017397,2]
[351237973,1738467044179,-547.67808225,0.00017397,2]
[351237974,1738467044189,-1552.21,0.00017397,2]
[351237975,1738467044199,-500.0,0.00017397,2]
[351237976,1738467044208,-500.0,0.00017397,2]
[351237977,1738467044218,-500.0,0.00017397,2]
[351237978,1738467044227,-837.554435,0.00017397,2]
[351237979,1738467044243,-210.185565,0.00017397,2]
[351237980,1738467044253,-389.10818439,0.00017397,2]
[351237981,1738467044265,-691.15,0.00017397,2]
[351237982,1738467044276,-2046.95181561,0.00017397,2]
[351237983,1738467044286,-500.0,0.00017397,2]
[351237984,1738467044295,-765.47,0.00017397,2]
[351237985,1738467044304,-1298.95,0.00017397,2]
[351237986,1738467044313,-2552.12,0.00017397,2]
[351237987,1738467044323,-1154.41,0.00017397,2]
[351237988,1738467044332,-500.0,0.00017397,2]
[351237989,1738467044341,-665.48,0.00017397,2]
[351237990,1738467044350,-500.0,0.00017397,2]
[351237991,1738467044360,-500.0,0.00017397,2]
[351237992,1738467044369,-10111.61818391,0.00017397,2]
[351237993,1738467044381,-358.77500001,0.00017397,2]
[351237994,1738467044395,-810.49681608,0.00017397,2]
[351237995,1738467044404,-781.12399179,0.00017397,2]
[351238033,1738467045759,-364.23600821,0.00017397,2]
[351238035,1738467045769,-2049.21,0.00017397,2]
[351238037,1738467045780,-500.0,0.00017397,2]
[351238039,1738467045790,-295.0,0.000174,2]
[351238040,1738467045799,-214.84216976,0.000174,2]
[351238041,1738467045810,-151.0,0.00017428,2]
[351238043,1738467045821,-153.0,0.0001743,2]
[351238045,1738467045831,-153.0,0.0001743,2]
[351238046,1738467045841,-153.0,0.0001743,2]
[351238047,1738467045854,-153.0,0.0001743,2]
[351238048,1738467045864,-153.0,0.0001743,2]
[351238049,1738467045874,-153.0,0.0001743,2]
[351238050,1738467045978,-153.0,0.0001743,2]
[351238051,1738467045989,-214.84216976,0.00017525,2]
[351238052,1738467045999,-151.0,0.00017534,2]
[351238053,1738467046008,-157.158795,0.00017534,2]
[351238054,1738467046018,-248.572076,0.00017534,2]
[351238055,1738467046027,-248.572076,0.00017534,2]
[351238056,1738467046037,-370.253454,0.00017534,2]
[351238057,1738467046047,-370.253454,0.00017534,2]
[351238058,1738467046057,-151.0,0.00017534,2]
[351238059,1738467046067,-331.859918,0.00017534,2]
[351238060,1738467046077,-500.0,0.00017534,2]
[351238061,1738467046086,-77.52117827,0.00017534,2]
[351238062,1738467046099,-457.59882173,0.00017534,2]
[351238063,1738467046109,-1854.35,0.00017534,2]
[351238064,1738467046119,-3178.87,0.00017534,2]
[351238065,1738467046128,-618.02,0.00017534,2]
[351238066,1738467046138,-500.0,0.00017534,2]
[351238067,1738467046148,-1552.21,0.00017534,2]
[351238068,1738467046157,-227.575193,0.00017534,2]
[351238069,1738467046166,-642.42437108,0.00017534,2]
[351238070,1738467046177,-227.575193,0.00017534,2]
[351238071,1738467046187,-500.0,0.00017534,2]
[351238072,1738467046197,-173.907085,0.00017534,2]
[351238073,1738467046208,-151.0,0.00017534,2]
[351238074,1738467046218,-173.907085,0.00017534,2]
[351238075,1738467046227,-271.745948,0.00017534,2]
[351238076,1738467046238,-244.450833,0.00017534,2]
[351238077,1738467046247,-244.450833,0.00017534,2]
[351238078,1738467046257,-500.0,0.00017534,2]
[351238079,1738467046267,-1047.74,0.00017534,2]
[351238080,1738467046276,-151.0,0.00017534,2]
[351238081,1738467046286,-3127.21,0.00017534,2]
[351238082,1738467046295,-500.0,0.00017534,2]
[351238083,1738467046304,-765.47,0.00017534,2]
[351238084,1738467046314,-1298.95,0.00017534,2]
[351238085,1738467046323,-2552.12,0.00017534,2]
[351238086,1738467046333,-1154.41,0.00017534,2]
[351238087,1738467046343,-500.0,0.00017534,2]
[351238088,1738467046352,-665.48,0.00017534,2]
[351238089,1738467046362,-500.0,0.00017534,2]
[351238090,1738467046371,-500.0,0.00017534,2]
[351238091,1738467046381,-2235.26704773,0.00017534,2]
[351238092,1738467046396,-398.66488349,0.00017534,2]
[351238093,1738467046408,-2120.0,0.00017534,2]
[351238094,1738467046419,-6526.95806878,0.00017534,2]
[351238095,1738467046429,-1145.36,0.00017534,2]
[351238096,1738467046439,-2049.21,0.00017534,2]
[351238097,1738467046449,-500.0,0.00017534,2]
[351238098,1738467046458,-305.30498633,0.00017542,2]
[351238099,1738467046468,-160.0,0.00017625,3]
[351238100,1738467046478,-214.84216976,0.0001765,2]
[351238101,1738467046487,-1523.46391623,0.0001767,5]
[351238102,1738467046497,-736.70299223,0.00017671,5]
[351238103,1738467046509,-2428.45496767,0.00017671,5]
[351238104,1738467063194,500.0,0.00014964,2]
[351238106,1738467172543,176.993832,0.00013973,2]
[351238108,1738467620217,10000.0,0.00015011,2]
[351238109,1738467640627,10000.0,0.00015011,2]
[351238110,1738467726888,500.0,0.00014964,2]
[351238112,1738468015550,582.52,0.00010959,2]
[351238113,1738468026082,217.03,0.00010959,2]
[351238114,1738468057357,180.85,0.00010959,2]
[351238115,1738468068115,254.88,0.00010959,2]
[351238116,1738468078687,212.4,0.00010959,2]
[351238117,1738468089215,177.0,0.00010959,2]
[351238118,1738468099718,885.05,0.00010959,2]
[351238119,1738468110271,431.48,0.00010959,2]
[351238120,1738468120989,426.55,0.00010959,2]
[351238121,1738468131531,411.27,0.00010959,2]
[351238123,1738468134916,176.159409,0.00013973,2]
[351238124,1738468142124,342.73,0.00010959,2]
[351238125,1738468152645,370.89,0.00010959,2]
[351238126,1738468163355,341.38,0.00010959,2]
[351238127,1738468174135,446.0,0.00010959,2]
[351238128,1738468184654,371.66,0.00010959,2]
[351238129,1738468195198,309.72,0.00010959,2]
[351238130,1738468205714,258.1,0.00010959,2]
[351238131,1738468216198,215.08,0.00010959,2]
[351238132,1738468226704,179.24,0.00010959,2]
[351238176,1738468236061,-282.749322,0.00015116,2]
[351238177,1738468236071,-600.70670744,0.00015167,2]
[351238183,1738468236121,-321.06130044,0.00015167,2]
[351238186,1738468236132,-2342.3,0.00015167,2]
[351238197,1738468236232,-7208.71884278,0.00015167,2]
[351238247,1738468237226,896.2,0.00010959,2]
[351238248,1738468238004,-3567.9502026,0.00015167,2]
[351238249,1738468238062,-7971.2738484,0.00015167,2]
[351238345,1738468240228,-1234.06679591,0.00015167,2]
[351238346,1738468240342,-1653.92230243,0.00015167,2]
[351238347,1738468240351,-318.3186649,0.00015209,2]
[351238349,1738468240361,-376.80320495,0.000159,2]
[351238350,1738468240371,-417.15558647,0.00015961,2]
[351238351,1738468240381,-9965.0,0.00016,2]
[351238352,1738468240391,-341.00053941,0.00016218,2]
[351238353,1738468240401,-172.929598,0.00016318,2]
[351238354,1738468240411,-175.32100335,0.00016338,2]
[351238355,1738468240421,-500.36214227,0.00016438,2]
[351238356,1738468240431,-504.53445312,0.00016438,2]
[351238357,1738468240441,-500.0,0.00016438,2]
[351238358,1738468240451,-500.0,0.00016438,2]
[351238359,1738468240462,-500.0,0.00016438,2]
[351238360,1738468240472,-500.0,0.00016438,2]
[351238361,1738468240482,-500.0,0.00016438,2]
[351238362,1738468240492,-500.0,0.00016438,2]
[351238363,1738468240502,-500.0,0.00016438,2]
[351238364,1738468240513,-500.0,0.00016438,2]
[351238365,1738468240524,-500.0,0.00016438,2]
[351238366,1738468240535,-500.0,0.00016438,2]
[351238367,1738468240546,-500.0,0.00016438,2]
[351238368,1738468240559,-500.0,0.00016438,2]
[351238369,1738468240572,-500.0,0.00016438,2]
[351238370,1738468240583,-500.0,0.00016438,2]
[351238371,1738468240594,-500.0,0.00016438,2]
[351238372,1738468240604,-500.0,0.00016438,2]
[351238373,1738468240615,-1282.9,0.00016438,2]
[351238374,1738468240626,-2296.49,0.00016438,2]
[351238375,1738468240637,-500.0,0.00016438,2]
[351238376,1738468240647,-500.0,0.00016438,2]
[351238377,1738468240658,-500.0,0.00016438,2]
[351238378,1738468240668,-500.0,0.00016438,2]
[351238379,1738468240679,-500.0,0.00016438,2]
[351238380,1738468240689,-500.0,0.00016438,2]
[351238381,1738468240700,-500.0,0.00016438,2]
[351238382,1738468240710,-500.0,0.00016438,2]
[351238383,1738468240720,-500.0,0.00016438,2]
[351238384,1738468240730,-500.0,0.00016438,2]
[351238385,1738468240741,-500.0,0.00016438,2]
[351238386,1738468240751,-500.54185304,0.00016438,2]
[351238387,1738468240761,-500.0,0.00016438,2]
[351238388,1738468240771,-500.0,0.00016438,2]
[351238389,1738468240781,-500.0,0.00016438,2]
[351238390,1738468240790,-1070.93,0.00016438,2]
[351238391,1738468240800,-500.0,0.00016438,2]
[351238392,1738468240813,-501.40004917,0.00016438,2]
[351238393,1738468240823,-500.0,0.00016438,2]
[351238394,1738468240833,-500.0,0.00016438,2]
[351238395,1738468240843,-503.35574741,0.00016438,2]
[351238396,1738468240853,-183.30202175,0.00016438,2]
[351238397,1738468240862,-500.0,0.00016438,2]
[351238398,1738468240872,-500.0,0.00016438,2]
[351238399,1738468240882,-500.0,0.00016438,2]
[351238400,1738468240899,-500.0,0.00016438,2]
[351238401,1738468240909,-500.0,0.00016438,2]
[351238402,1738468240921,-500.0,0.00016438,2]
[351238403,1738468240931,-500.0,0.00016438,2]
[351238404,1738468240941,-500.0,0.00016438,2]
[351238405,1738468240951,-500.0,0.00016438,2]
[351238406,1738468240961,-195.29528843,0.00016438,2]
[351238407,1738468240971,-500.0,0.00016438,2]
[351238408,1738468240981,-500.0,0.00016438,2]
[351238409,1738468240991,-500.0,0.00016438,2]
[351238410,1738468241001,-503.75730287,0.00016438,2]
[351238411,1738468241011,-500.0,0.00016438,2]
[351238412,1738468241021,-500.0,0.00016438,2]
[351238413,1738468241031,-500.0,0.00016438,2]
[351238414,1738468241041,-500.0,0.00016438,2]
[351238415,1738468241051,-500.0,0.00016438,2]
[351238416,1738468241065,-500.0,0.00016438,2]
[351238417,1738468241076,-439.84965377,0.00016438,2]
[351238418,1738468241089,-1334.85005578,0.00016438,2]
[351238454,1738468242946,-799.74994422,0.00016438,2]
[351238456,1738468242956,-500.0,0.00016438,2]
[351238458,1738468242965,-753.13,0.00016438,2]
[351238460,1738468242974,-359.44937566,0.00016438,2]
[351238462,1738468242983,-501.74125876,0.00016438,2]
[351238463,1738468242994,-500.0,0.00016438,2]
[351238464,1738468243004,-500.0,0.00016438,2]
[351238465,1738468243014,-700.5578569,0.00016438,2]
[351238466,1738468243026,-212.4121431,0.00016438,2]
[351238467,1738468243037,-500.0,0.00016438,2]
[351238468,1738468243047,-500.0,0.00016438,2]
[351238469,1738468243056,-742.34,0.00016438,2]
[351238470,1738468243075,-500.0,0.00016438,2]
[351238471,1738468243087,-500.0,0.00016438,2]
[351238472,1738468243098,-517.2,0.00016438,2]
[351238473,1738468243110,-500.0,0.00016438,2]
[351238474,1738468243121,-509.01919174,0.00016438,2]
[351238475,1738468243131,-500.0,0.00016438,2]
[351238476,1738468243141,-500.0,0.00016438,2]
[351238477,1738468243151,-522.47761148,0.00016438,2]
[351238478,1738468243161,-500.0,0.00016438,2]
[351238479,1738468243171,-502.87170622,0.00016438,2]
[351238480,1738468243181,-500.0,0.00016438,2]
[351238481,1738468243191,-500.0,0.00016438,2]
[351238482,1738468243203,-500.0,0.00016438,2]
[351238483,1738468243213,-500.0,0.00016438,2]
[351238484,1738468243223,-500.0,0.00016438,2]
[351238485,1738468243233,-757.52,0.00016438,2]
[351238486,1738468243242,-1876.54,0.00016438,2]
[351238487,1738468243251,-1361.79,0.00016438,2]
[351238488,1738468243261,-500.0,0.00016438,2]
[351238489,1738468243271,-9203.1,0.00016438,2]
[351238490,1738468243281,-500.0,0.00016438,2]
[351238491,1738468243291,-102.40038625,0.00016438,2]
[351238492,1738468243305,-397.59961375,0.00016438,2]
[351238493,1738468243325,-500.0,0.00016438,2]
[351238494,1738468243334,-500.0,0.00016438,2]
[351238495,1738468243344,-500.0,0.00016438,2]
[351238496,1738468243353,-500.0,0.00016438,2]
[351238497,1738468243363,-500.0,0.00016438,2]
[351238498,1738468243373,-500.0,0.00016438,2]
[351238499,1738468243387,-500.0,0.00016438,2]
[351238500,1738468243405,-28.31671268,0.00016438,2]
[351238501,1738468243432,-471.68328732,0.00016438,2]
[351238502,1738468243443,-500.0,0.00016438,2]
[351238503,1738468243454,-78.31671268,0.00016573,2]
[351238506,1738468246113,-1229.44,0.00016438,2]
[351238507,1738468246123,-237.99239655,0.00016458,2]
[351238509,1738468246134,-103.0081428,0.00016458,2]
[351238511,1738468246144,-421.68328732,0.00016573,2]
[351238512,1738468246154,-500.0,0.00016574,2]
[351238513,1738468246163,-500.0,0.00016574,2]
[351238514,1738468246172,-500.0,0.00016574,2]
[351238515,1738468246182,-500.0,0.00016575,2]
[351238516,1738468246191,-313.72334874,0.00016575,2]
[351238517,1738468246200,-197.5620575,0.00016575,2]
[351238518,1738468246209,-500.0,0.00016575,2]
[351238519,1738468246219,-2296.49,0.00016575,2]
[351238520,1738468246229,-500.0,0.00016575,2]
[351238521,1738468246238,-500.0,0.00016575,2]
[351238522,1738468246248,-500.0,0.00016575,2]
[351238523,1738468246257,-462.13,0.00016575,2]
[351238524,1738468246266,-1070.93,0.00016575,2]
[351238525,1738468246276,-500.0,0.00016575,2]
[351238526,1738468246285,-549.64009583,0.00016575,2]
[351238527,1738468246294,-500.0,0.00016575,2]
[351238528,1738468246307,-2134.6,0.00016575,2]
[351238529,1738468246318,-753.13,0.00016575,2]
[351238530,1738468246328,-500.0,0.00016575,2]
[351238531,1738468246337,-500.0,0.00016575,2]
[351238532,1738468246348,-912.97,0.00016575,2]
[351238533,1738468246357,-742.34,0.00016575,2]
[351238534,1738468246367,-500.0,0.00016575,2]
[351238535,1738468246378,-500.0,0.00016575,2]
[351238536,1738468246387,-500.0,0.00016575,2]
[351238537,1738468246397,-500.0,0.00016575,2]
[351238538,1738468246407,-757.52,0.00016575,2]
[351238539,1738468246416,-1876.54,0.00016575,2]
[351238540,1738468246425,-1361.79,0.00016575,2]
[351238541,1738468246434,-6939.72047692,0.00016575,2]
[351238542,1738468246447,-2100.0,0.00016575,2]
[351238543,1738468246459,-163.37952308,0.00016575,2]
[351238544,1738468246468,-501.67323085,0.00016575,2]
[351238545,1738468246478,-585.71201547,0.00016575,2]
[351238546,1738468246487,-500.0,0.00016575,2]
[351238547,1738468246497,-500.0,0.00016575,2]
[351238548,1738468246506,-1229.44,0.00016575,2]
[351238549,1738468246616,-500.0,0.00016711,2]
[351238550,1738468246626,-500.0,0.00016711,2]
[351238551,1738468246636,-500.0,0.00016712,2]
[351238552,1738468246645,-2296.49,0.00016712,2]
[351238553,1738468246654,-258.0600944,0.00016712,2]
[351238555,1738468645432,-5000.0,0.00015265,2]
[351238556,1738468645457,-300.0,0.00015419,2]
[351238557,1738468645487,-24900.0,0.0001542,2]
[351238558,1738468645512,-8019.1904661,0.00015425,2]
[351238559,1738468645537,-3000.0,0.000164,2]
[351238560,1738468645562,-3000.0,0.0001641,2]
[351238561,1738468645587,-3000.0,0.0001642,2]
[351238562,1738468645612,-3000.0,0.0001643,2]
[351238563,1738468645638,-600.05250754,0.00016437,2]
[351238564,1738468645665,-453.78598865,0.00016437,2]
[351238565,1738468645696,-500.0,0.00016437,2]
[351238566,1738468645720,-500.0,0.00016437,2]
[351238567,1738468645747,-426.8205737,0.00016437,2]
[351238568,1738468645772,-500.0,0.00016437,2]
[351238569,1738468645796,-237.16187037,0.00016437,2]
[351238570,1738468645820,-504.64048291,0.00016438,2]
[351238571,1738468645844,-500.0,0.00016438,2]
[351238572,1738468645868,-500.0,0.00016438,2]
[351238573,1738468645893,-501.22733542,0.00016438,2]
[351238574,1738468645920,-500.0,0.00016438,2]
[351238575,1738468645946,-500.0,0.00016438,2]
[351238576,1738468645971,-500.0,0.00016438,2]
[351238577,1738468645996,-500.0,0.00016438,2]
[351238578,1738468646020,-500.0,0.00016438,2]
[351238579,1738468646049,-711.2,0.00016438,2]
[351238580,1738468646076,-500.0,0.00016438,2]
[351238581,1738468646102,-500.0,0.00016438,2]
[351238582,1738468646129,-345.92077531,0.00016438,2]
[351238592,1738469026350,1414.85507286,0.00015011,2]
[351238593,1738469147228,-2896.8673409,0.00015372,2]
[351238594,1738469147248,-276.7356286,0.00015413,2]
[351238595,1738469147268,-166.0,0.00015441,2]
[351238596,1738469147289,-272.450131,0.00015447,2]
[351238597,1738469147311,-321.47665575,0.00016338,2]
[351238598,1738469147333,-300.0,0.00016437,2]
[351238599,1738469147357,-503.01921612,0.00016438,2]
[351238600,1738469147378,-500.0,0.00016438,2]
[351238601,1738469147398,-503.02980575,0.00016438,2]
[351238602,1738469147419,-500.0,0.00016438,2]
[351238603,1738469147440,-255.15915599,0.00016438,2]
[351238604,1738469147460,-368.67574739,0.00016438,2]
[351238605,1738469147480,-500.0,0.00016438,2]
[351238606,1738469147500,-500.0,0.00016438,2]
[351238607,1738469147520,-500.0,0.00016438,2]
[351238608,1738469147540,-500.0,0.00016438,2]
[351238609,1738469147561,-500.0,0.00016438,2]
[351238610,1738469147581,-500.0,0.00016438,2]
[351238611,1738469147607,-500.0,0.00016438,2]
[351238612,1738469147629,-500.0,0.00016438,2]
[351238613,1738469147650,-500.0,0.00016438,2]
[351238614,1738469147670,-500.0,0.00016438,2]
[351238615,1738469147691,-500.0,0.00016438,2]
[351238616,1738469147711,-500.0,0.00016438,2]
[351238617,1738469147731,-500.0,0.00016438,2]
[351238618,1738469147751,-500.0,0.00016438,2]
[351238619,1738469147772,-500.0,0.00016438,2]
[351238620,1738469147792,-500.0,0.00016438,2]
[351238621,1738469147813,-500.0,0.00016438,2]
[351238622,1738469147834,-500.0,0.00016438,2]
[351238623,1738469147857,-500.0,0.00016438,2]
[351238624,1738469147878,-500.0,0.00016438,2]
[351238625,1738469147901,-500.0,0.00016438,2]
[351238626,1738469147921,-500.0,0.00016438,2]
[351238627,1738469147941,-500.0,0.00016438,2]
[351238628,1738469147961,-500.0,0.00016438,2]
[351238629,1738469147981,-500.0,0.00016438,2]
[351238630,1738469148002,-500.0,0.00016438,2]
[351238631,1738469148149,-500.0,0.00016438,2]
[351238632,1738469148171,-539.92816351,0.00016438,2]
[351238633,1738469148193,-500.0,0.00016438,2]
[351238634,1738469148215,-506.21642135,0.00016438,2]
[351238635,1738469148237,-501.42422133,0.00016438,2]
[351238636,1738469148259,-533.62805799,0.00016438,2]
[351238637,1738469148280,-500.0,0.00016438,2]
[351238638,1738469148302,-500.0,0.00016438,2]
[351238639,1738469148324,-500.0,0.00016438,2]
[351238640,1738469148345,-500.0,0.00016438,2]
[351238641,1738469148374,-500.0,0.00016438,2]
[351238642,1738469148395,-500.0,0.00016438,2]
[351238643,1738469148417,-500.0,0.00016438,2]
[351238644,1738469148438,-501.18175277,0.00016438,2]
[351238645,1738469148459,-500.0,0.00016438,2]
[351238646,1738469148482,-500.0,0.00016438,2]
[351238647,1738469148507,-500.0,0.00016438,2]
[351238648,1738469148531,-503.88473912,0.00016438,2]
[351238649,1738469148553,-510.23508567,0.00016438,2]
[351238650,1738469148573,-502.11111267,0.00016438,2]
[351238651,1738469148598,-500.0,0.00016438,2]
[351238652,1738469148623,-504.40620073,0.00016438,2]
[351238653,1738469148647,-500.0,0.00016438,2]
[351238654,1738469148668,-500.0,0.00016438,2]
[351238655,1738469148691,-500.0,0.00016438,2]
[351238656,1738469148715,-500.0,0.00016438,2]
[351238657,1738469148738,-500.0,0.00016438,2]
[351238658,1738469148762,-500.0,0.00016438,2]
[351238659,1738469148786,-500.0,0.00016438,2]
[351238660,1738469148808,-500.0,0.00016438,2]
[351238661,1738469148830,-500.0,0.00016438,2]
[351238662,1738469148854,-500.0,0.00016438,2]
[351238663,1738469148875,-500.0,0.00016438,2]
[351238664,1738469148896,-199.16552161,0.00016438,2]
[351238665,1738469148918,-500.0,0.00016438,2]
[351238666,1738469148939,-504.73896653,0.00016438,2]
[351238667,1738469148961,-505.20762032,0.00016438,2]
[351238668,1738469148982,-500.0,0.00016438,2]
[351238669,1738469149004,-500.0,0.00016438,2]
[351238670,1738469149024,-500.0,0.00016438,2]
[351238671,1738469149045,-500.0,0.00016438,2]
[351238672,1738469149067,-500.0,0.00016438,2]
[351238673,1738469149088,-500.0,0.00016438,2]
[351238674,1738469149112,-500.0,0.00016438,2]
[351238675,1738469149133,-500.0,0.00016438,2]
[351238676,1738469149154,-500.0,0.00016438,2]
[351238677,1738469149174,-500.0,0.00016438,2]
[351238678,1738469149197,-500.0,0.00016438,2]
[351238679,1738469149221,-438.81142038,0.00016438,2]
[351238680,1738469149246,-500.0,0.00016438,2]
[351238681,1738469149270,-500.0,0.00016438,2]
[351238682,1738469149296,-500.0,0.00016438,2]
[351238683,1738469149322,-500.0,0.00016438,2]
[351238684,1738469149346,-437.575457,0.00016438,2]
[351238685,1738469149383,-500.0,0.00016438,2]
[351238686,1738469149407,-500.0,0.00016438,2]
[351238687,1738469149432,-500.0,0.00016438,2]
[351238688,1738469149458,-500.0,0.00016438,2]
[351238689,1738469149485,-2130.91,0.00016438,2]
[351238690,1738469149509,-500.0,0.00016438,2]
[351238691,1738469149533,-370.22165324,0.00016438,2]
[351238692,1738469149556,-500.0,0.00016438,2]
[351238693,1738469149581,-500.0,0.00016438,2]
[351238694,1738469149612,-500.0,0.00016438,2]
[351238695,1738469149637,-500.0,0.00016438,2]
[351238696,1738469149662,-500.0,0.00016438,2]
[351238697,1738469149690,-500.0,0.00016438,2]
[351238698,1738469149715,-500.0,0.00016438,2]
[351238699,1738469149739,-501.79222377,0.00016438,2]
[351238700,1738469149767,-500.0,0.00016438,2]
[351238701,1738469149792,-500.0,0.00016438,2]
[351238702,1738469149816,-507.36625239,0.00016438,2]
[351238703,1738469149841,-500.0,0.00016438,2]
[351238704,1738469149872,-510.08604802,0.00016438,2]
[351238705,1738469149898,-500.0,0.00016438,2]
[351238706,1738469149922,-510.40218062,0.00016438,2]
[351238707,1738469149950,-762.95,0.00016438,2]
[351238708,1738469149975,-500.0,0.00016438,2]
[351238709,1738469149999,-500.0,0.00016438,2]
[351238710,1738469150022,-502.24642681,0.00016438,2]
[351238711,1738469150045,-500.0,0.00016438,2]
[351238712,1738469150069,-1354.52,0.00016438,2]
[351238713,1738469150091,-500.0,0.00016438,2]
[351238714,1738469150119,-783.45,0.00016438,2]
[351238715,1738469150141,-500.0,0.00016438,2]
[351238716,1738469150165,-609.51892124,0.00016438,2]
[351238717,1738469150191,-1826.5,0.00016438,2]
[351238718,1738469150214,-479.0,0.00016438,2]
[351238719,1738469150239,-500.0,0.00016438,2]
[351238720,1738469150263,-500.0,0.00016438,2]
[351238721,1738469150287,-322.92746997,0.00016438,2]
[351238722,1738469150312,-500.0,0.00016438,2]
[351238723,1738469150335,-500.0,0.00016438,2]
[351238724,1738469150360,-500.0,0.00016438,2]
[351238725,1738469150383,-500.0,0.00016438,2]
[351238726,1738469150405,-500.0,0.00016438,2]
[351238727,1738469150427,-500.0,0.00016438,2]
[351238728,1738469150449,-500.0,0.00016438,2]
[351238729,1738469150472,-500.0,0.00016438,2]
[351238730,1738469150493,-500.0,0.00016438,2]
[351238731,1738469150518,-500.0,0.00016438,2]
[351238732,1738469150541,-500.0,0.00016438,2]
[351238733,1738469150564,-500.0,0.00016438,2]
[351238734,1738469150587,-504.50185385,0.00016438,2]
[351238735,1738469150615,-513.08353215,0.00016438,2]
[351238736,1738469150639,-500.0,0.00016438,2]
[351238737,1738469150660,-500.0,0.00016438,2]
[351238738,1738469150681,-500.0,0.00016438,2]
[351238739,1738469150703,-500.0,0.00016438,2]
[351238740,1738469150725,-500.0,0.00016438,2]
[351238741,1738469150749,-9080.03,0.00016438,2]
[351238742,1738469150774,-1147.82,0.00016438,2]
[351238743,1738469150796,-500.0,0.00016438,2]
[351238744,1738469150819,-500.0,0.00016438,2]
[351238745,1738469150839,-500.0,0.00016438,2]
[351238746,1738469150863,-500.0,0.00016438,2]
[351238747,1738469150884,-500.0,0.00016438,2]
[351238748,1738469150906,-500.0,0.00016438,2]
[351238749,1738469150927,-504.51334697,0.00016438,2]
[351238750,1738469150951,-500.0,0.00016438,2]
[351238751,1738469150974,-500.0,0.00016438,2]